bitfinex/quotes_BTCUSD_20250813
["timestamp","ask_amount","ask_price","bid_price","bid_amount"]
[1755098433078,0.55512278,120350.0,120340.0,0.28377278]
[1755098433279,0.10333227,120350.0,120340.0,0.14469278]
[1755098433486,0.55512278,120350.0,120340.0,0.28377278]
[1755098434141,0.10333227,120350.0,120340.0,0.14369278]
[1755098434336,0.10333227,120350.0,120340.0,0.28277278]
[1755098434578,0.12034522,120350.0,120340.0,0.14469278]
[1755098434883,0.57213573,120350.0,120340.0,0.14469278]
[1755098435084,0.57002607,120350.0,120340.0,0.28377278]
[1755098435486,0.10633227,120350.0,120340.0,0.28377278]
[1755098435699,0.10844193,120350.0,120340.0,0.28377278]
[1755098435905,0.10844193,120350.0,120340.0,0.28373278]
[1755098436082,0.10633227,120350.0,120340.0,0.28373278]
[1755098436321,0.08888325,120350.0,120340.0,0.28373278]
[1755098436525,0.08588325,120350.0,120340.0,0.14369278]
[1755098436698,0.08588325,120350.0,120340.0,0.28273278]
[1755098436912,0.08672325,120350.0,120340.0,0.31285447]
[1755098437119,0.08672325,120350.0,120340.0,0.28373278]
[1755098437324,0.08672325,120350.0,120340.0,0.14369278]
[1755098437325,0.08272325,120350.0,120340.0,0.14369278]
[1755098437536,0.08272325,120350.0,120340.0,0.28273278]
[1755098437694,0.08872325,120350.0,120340.0,0.28373278]
[1755098438099,0.08872325,120350.0,120340.0,0.28273278]
[1755098438100,0.08272325,120350.0,120340.0,0.28273278]
[1755098438530,0.08772325,120350.0,120340.0,0.28373278]
[1755098439237,0.005,120350.0,120340.0,0.17360606]
[1755098439446,0.005,120350.0,120340.0,0.76443657]
[1755098439656,0.005,120350.0,120340.0,0.73552329]
[1755098440083,0.005,120350.0,120340.0,0.76267906]
[1755098440297,0.00014666,120360.0,120350.0,0.16618196]
[1755098440508,0.00014666,120360.0,120350.0,0.75904974]
[1755098440684,0.00014666,120360.0,120350.0,0.75697247]
[1755098440928,0.00014666,120360.0,120350.0,0.7004569]
[1755098441135,0.00014666,120360.0,120350.0,0.8394569]
[1755098441302,0.00014666,120360.0,120350.0,0.7017569]
[1755098441505,0.00014666,120360.0,120350.0,0.46882196]
[1755098441720,0.00014666,120360.0,120350.0,0.60782196]
[1755098442907,0.00014666,120360.0,120350.0,0.19912]
[1755098443111,0.00014666,120360.0,120350.0,0.33808]
[1755098443318,0.00014666,120360.0,120350.0,0.33908]
[1755098443319,0.00414666,120360.0,120350.0,0.33908]
[1755098443526,0.00414666,120360.0,120350.0,0.001]
[1755098443747,0.00414666,120360.0,120350.0,0.13996]
[1755098444131,0.00014666,120360.0,120340.0,0.76167784]
[1755098444334,0.00414666,120360.0,120350.0,0.13996]
[1755098444510,0.00414666,120360.0,120350.0,0.001]
[1755098444723,0.00514666,120360.0,120350.0,0.005]
[1755098444932,0.00514666,120360.0,120350.0,0.13996]
[1755098445142,0.00414666,120360.0,120350.0,0.13996]
[1755098445349,0.00514666,120360.0,120350.0,0.13996]
[1755098445547,0.00514666,120360.0,120350.0,0.001]
[1755098445708,0.00514666,120360.0,120350.0,0.16718196]
[1755098445917,0.00114666,120360.0,120350.0,0.75689247]
[1755098446123,0.00414666,120360.0,120350.0,0.60238344]
[1755098446325,0.00414666,120360.0,120350.0,0.59071051]
[1755098446522,0.00414666,120360.0,120350.0,0.13892]
[1755098446748,0.08602991,120360.0,120350.0,0.13892]
[1755098446946,0.08702991,120360.0,120350.0,0.14600343]
[1755098447335,0.08702991,120360.0,120350.0,0.00708343]
[1755098447545,0.09102991,120360.0,120350.0,0.14700343]
[1755098448169,0.09102991,120360.0,120350.0,0.00808343]
[1755098448376,0.09102991,120360.0,120350.0,0.14700343]
[1755098448591,0.00514666,120360.0,120350.0,0.48894356]
[1755098448810,0.00514666,120360.0,120350.0,0.03406962]
[1755098449021,0.00514666,120360.0,120350.0,0.45679051]
[1755098449467,0.00514666,120360.0,120350.0,0.59697051]
[1755098449851,0.00514666,120360.0,120350.0,0.45809051]
[1755098450099,0.00514666,120360.0,120350.0,0.59697051]
[1755098450309,0.00514666,120360.0,120350.0,0.93697051]
[1755098450560,0.00514666,120360.0,120350.0,1.0467569]
[1755098450769,0.00514666,120360.0,120350.0,1.1855969]
[1755098451420,0.00514666,120360.0,120350.0,1.12948015]
[1755098451648,0.00514666,120360.0,120350.0,1.40473819]
[1755098452056,0.00514666,120360.0,120350.0,1.57092015]
[1755098452264,0.00514666,120360.0,120350.0,1.43208015]
[1755098452384,0.00514666,120360.0,120350.0,1.46740015]
[1755098452593,0.00514666,120360.0,120350.0,1.07835494]
[1755098452793,0.00514666,120360.0,120350.0,0.20408]
[1755098453000,0.00830666,120360.0,120350.0,0.34292]
[1755098454085,0.00830666,120360.0,120350.0,0.005]
[1755098454335,0.00830666,120360.0,120350.0,0.1438]
[1755098454953,0.00830666,120360.0,120350.0,0.14587727]
[1755098455162,0.00830666,120360.0,120350.0,0.14688343]
[1755098455370,0.00830666,120360.0,120350.0,0.00808343]
[1755098455590,0.00830666,120360.0,120350.0,0.14688343]
[1755098456278,0.00514666,120360.0,120350.0,0.14688343]
[1755098458119,0.00514666,120360.0,120350.0,0.2211201]
[1755098458249,0.00514666,120360.0,120350.0,0.1438]
[1755098458475,0.00514666,120360.0,120350.0,0.14688343]
[1755098458877,0.00514666,120360.0,120350.0,0.14376]
[1755098459078,0.00830666,120360.0,120350.0,0.14376]
[1755098459711,0.09102991,120360.0,120350.0,0.005]
[1755098460080,0.09102991,120360.0,120350.0,0.14372]
[1755098460284,0.15787762,120360.0,120350.0,0.005]
[1755098460538,0.62922681,120360.0,120350.0,0.005]
[1755098460693,0.17532664,120360.0,120350.0,0.14372]
[1755098461269,1.08335715,120360.0,120350.0,0.005]
[1755098461461,1.16484158,120360.0,120340.0,0.24721278]
[1755098461685,0.50692782,120360.0,120350.0,0.19908]
[1755098461837,0.51192782,120360.0,120350.0,0.33876]
[1755098462076,0.51192782,120360.0,120350.0,0.20008]
[1755098462277,0.63121782,120360.0,120350.0,0.20008]
[1755098462480,0.62621782,120360.0,120350.0,0.33776]
[1755098462894,1.08500833,120360.0,120350.0,0.33876]
[1755098463049,1.16773158,120360.0,120350.0,0.20008]
[1755098463258,1.16073158,120360.0,120350.0,0.33776]
[1755098463463,1.16473158,120360.0,120350.0,0.33876]
[1755098463673,1.17173158,120360.0,120350.0,0.001]
[1755098463883,1.17173158,120360.0,120350.0,0.20012]
[1755098464534,1.17173158,120360.0,120350.0,0.3388]
[1755098464761,0.71994107,120360.0,120350.0,0.33876]
[1755098465005,1.17173158,120360.0,120350.0,0.20012]
[1755098465267,1.17173158,120360.0,120350.0,0.33876]
[1755098465695,1.10488387,120360.0,120350.0,0.20012]
[1755098465883,0.63564434,120360.0,120350.0,0.20012]
[1755098466124,1.08743485,120360.0,120350.0,0.33876]
[1755098466651,1.10488387,120360.0,120350.0,0.20012]
[1755098466865,1.10488387,120360.0,120350.0,0.33876]
[1755098467288,1.10488387,120360.0,120350.0,0.20012]
[1755098467493,0.98864387,120360.0,120350.0,0.20012]
[1755098467852,0.90615944,120360.0,120350.0,0.33876]
[1755098468592,0.90615944,120360.0,120350.0,0.20012]
[1755098468776,0.90615944,120360.0,120350.0,0.33872]
[1755098469613,0.45436893,120360.0,120350.0,0.33872]
[1755098470250,0.90615944,120360.0,120350.0,0.33872]
[1755098470804,0.45436893,120360.0,120350.0,0.33872]
[1755098471007,0.90615944,120360.0,120350.0,0.33872]
[1755098471384,0.98864387,120360.0,120350.0,0.33872]
[1755098471590,0.98864387,120360.0,120350.0,0.20012]
[1755098471707,0.98864387,120360.0,120350.0,0.33868]
[1755098471916,1.10488387,120360.0,120350.0,0.20012]
[1755098472123,1.12979387,120360.0,120350.0,0.20012]
[1755098472363,1.12979387,120360.0,120350.0,0.33868]
[1755098473826,1.58158438,120360.0,120350.0,0.33868]
[1755098474042,1.12979387,120360.0,120350.0,0.20012]
[1755098474228,1.12979387,120360.0,120350.0,0.001]
[1755098474509,1.12979387,120360.0,120350.0,0.33868]
[1755098474732,1.58158438,120360.0,120350.0,0.33868]
[1755098474943,1.58158438,120360.0,120350.0,0.20016]
[1755098475181,1.58158438,120360.0,120340.0,0.24721278]
[1755098475421,1.49015295,120350.0,120340.0,0.24721278]
[1755098475611,0.6669467,120350.0,120340.0,0.58489278]
[1755098475739,1.57052772,120350.0,120340.0,0.58489278]
[1755098476141,1.56952772,120350.0,120340.0,0.58489278]
[1755098477315,0.89901278,120350.0,120340.0,0.44737278]
[1755098477806,0.89901278,120350.0,120340.0,0.58585278]
[1755098478126,0.90801278,120350.0,120340.0,0.58585278]
[1755098479256,1.35980329,120350.0,120340.0,0.44737278]
[1755098479718,1.35980329,120350.0,120340.0,0.58585278]
[1755098479917,1.44228772,120350.0,120340.0,0.44737278]
[1755098480120,0.99049721,120350.0,120340.0,0.58585278]
[1755098480323,1.25679721,120350.0,120340.0,0.58585278]
[1755098480710,1.70858772,120350.0,120340.0,0.58581278]
[1755098481117,1.79590772,120350.0,120340.0,0.58581278]
[1755098481291,1.73358772,120350.0,120340.0,0.44737278]
[1755098481677,1.73358772,120350.0,120340.0,0.58581278]
[1755098482099,1.58352772,120350.0,120340.0,0.58581278]
[1755098482303,1.60852772,120350.0,120340.0,0.58581278]
[1755098482901,1.60852772,120350.0,120340.0,0.43907073]
[1755098483116,1.69584772,120350.0,120340.0,0.41559308]
[1755098483359,1.69584772,120350.0,120340.0,0.54569103]
[1755098484483,1.90210521,120350.0,120340.0,0.52908693]
[1755098484695,1.90210521,120350.0,120340.0,0.13016769]
[1755098484907,1.90210521,120350.0,120340.0,0.32936769]
[1755098485064,1.90210521,120350.0,120340.0,0.32106522]
[1755098485278,0.64476902,120340.0,120320.0,0.0004]
[1755098485461,1.00639244,120330.0,120320.0,0.0004]
[1755098485658,1.02249131,120330.0,120320.0,0.1996]
[1755098486100,0.93517131,120330.0,120320.0,0.1996]
[1755098486299,0.01744902,120310.0,120300.0,7e-05]
[1755098486507,1.00586295,120310.0,120300.0,0.19927]
[1755098486708,0.63152657,120310.0,120300.0,0.33763]
[1755098486904,0.63357657,120310.0,120300.0,0.33763]
[1755098487347,0.64871101,120310.0,120300.0,0.33763]
[1755098487517,0.67500772,120310.0,120300.0,0.33863]
[1755098487701,0.67505657,120310.0,120300.0,0.33863]
[1755098488104,1.12684708,120310.0,120300.0,0.33863]
[1755098488541,0.68005657,120310.0,120300.0,0.33863]
[1755098488741,0.70497957,120310.0,120300.0,0.33863]
[1755098488963,0.70497957,120310.0,120300.0,0.33859]
[1755098489169,1.15677008,120310.0,120300.0,0.20027]
[1755098489464,1.07732005,120300.0,120290.0,0.36387566]
[1755098489671,0.01744902,120270.0,120230.0,0.03286452]
[1755098489866,0.01744902,120270.0,120230.0,0.03600452]
[1755098489867,0.10017227,120240.0,120230.0,0.03600452]
[1755098490042,0.10017227,120240.0,120230.0,0.17432452]
[1755098490585,0.55307244,120240.0,120230.0,0.17432452]
[1755098490785,0.09917227,120240.0,120230.0,0.03600452]
[1755098490989,0.1090895,120240.0,120230.0,0.17432452]
[1755098491199,0.56303848,120240.0,120230.0,0.03600452]
[1755098491401,0.58637346,120240.0,120230.0,0.03486452]
[1755098491607,0.92947346,120240.0,120230.0,0.47602452]
[1755098491813,0.92637346,120240.0,120230.0,0.47602452]
[1755098492009,0.92637346,120240.0,120230.0,0.33770452]
[1755098492256,0.92847346,120240.0,120230.0,0.47398452]
[1755098492463,0.35744902,120230.0,120220.0,0.00107635]
[1755098492667,0.97754721,120230.0,120220.0,0.20031635]
[1755098493096,0.98785147,120230.0,120220.0,0.20031635]
[1755098493516,0.97754721,120230.0,120220.0,0.20031635]
[1755098493719,0.97654721,120230.0,120220.0,0.33863635]
[1755098494150,0.97654721,120230.0,120220.0,0.19924]
[1755098494358,1.00454721,120230.0,120220.0,0.33852]
[1755098494768,1.00454721,120230.0,120220.0,0.20024]
[1755098494973,1.01961082,120230.0,120220.0,0.33852]
[1755098495172,1.02461082,120230.0,120220.0,0.33852]
[1755098495380,0.91712639,120230.0,120220.0,0.33852]
[1755098495769,0.91712639,120230.0,120220.0,0.20024]
[1755098495970,0.91402639,120230.0,120220.0,0.20024]
[1755098496177,0.93896539,120230.0,120220.0,0.20024]
[1755098496313,0.93896539,120230.0,120220.0,0.33852]
[1755098496510,0.57991216,120230.0,120220.0,0.20024]
[1755098496709,0.45503971,120230.0,120220.0,0.20338]
[1755098496955,0.4399761,120230.0,120220.0,0.20338]
[1755098497465,0.1009761,120230.0,120220.0,0.20338]
[1755098497673,0.55797627,120230.0,120220.0,0.20032]
[1755098497849,0.99678632,120230.0,120220.0,0.20032]
[1755098498218,0.98343347,120230.0,120220.0,0.20032]
[1755098498432,0.53164296,120230.0,120220.0,0.20346]
[1755098498645,0.17659574,120230.0,120220.0,0.20346]
[1755098499076,0.10817227,120230.0,120220.0,0.3417]
[1755098499284,0.11028193,120230.0,120220.0,0.3417]
[1755098499482,0.56207244,120230.0,120220.0,0.3417]
[1755098499754,0.55996278,120230.0,120220.0,0.3417]
[1755098500181,0.12321444,120230.0,120220.0,0.3417]
[1755098500389,0.19084077,120230.0,120220.0,0.20346]
[1755098500609,0.12321444,120230.0,120220.0,0.20346]
[1755098500825,0.10576542,120230.0,120220.0,0.20346]
[1755098501038,0.10576855,120230.0,120220.0,0.3417]
[1755098501475,0.0180453,120230.0,120220.0,0.87666051]
[1755098501676,0.08272325,120230.0,120220.0,0.42387]
[1755098501883,0.11105639,120230.0,120220.0,0.34066]
[1755098502092,0.11516605,120230.0,120220.0,0.34166]
[1755098502293,0.10805639,120230.0,120220.0,0.20346]
[1755098502497,0.09977918,120230.0,120220.0,0.20346]
[1755098502708,0.08472325,120230.0,120220.0,0.57370051]
[1755098502926,0.08872325,120230.0,120220.0,0.71190051]
[1755098503138,0.006,120230.0,120220.0,0.57370051]
[1755098503360,0.006,120230.0,120220.0,0.74006218]
[1755098503585,0.006,120230.0,120220.0,0.87826218]
[1755098503784,0.006,120230.0,120220.0,0.74006218]
[1755098504006,4.881e-05,120240.0,120220.0,0.82154661]
[1755098504225,4.881e-05,120240.0,120230.0,1.18986029]
[1755098504460,4.881e-05,120240.0,120230.0,1.6635621]
[1755098504884,4.881e-05,120240.0,120230.0,1.34993159]
[1755098505487,4.881e-05,120240.0,120230.0,1.35093159]
[1755098505690,0.00104881,120240.0,120230.0,1.35093159]
[1755098505890,0.00204881,120240.0,120230.0,1.35093159]
[1755098506944,0.00204881,120240.0,120230.0,1.35089159]
[1755098507120,0.00104881,120240.0,120230.0,1.6645621]
[1755098507360,0.0819054,120280.0,120250.0,0.17461314]
[1755098507553,0.08205314,120280.0,120270.0,0.45179051]
[1755098507754,0.08208135,120280.0,120270.0,0.45493051]
[1755098507991,0.06699545,120280.0,120270.0,0.00314]
[1755098508530,0.06699545,120280.0,120260.0,0.6430107]
[1755098508738,0.06799545,120280.0,120270.0,0.62108301]
[1755098508916,0.00114774,120280.0,120270.0,0.62108301]
[1755098509331,0.00114774,120280.0,120270.0,1.15129069]
[1755098509537,0.00114774,120280.0,120270.0,1.17629069]
[1755098509953,0.00114774,120280.0,120270.0,1.28933069]
[1755098510165,0.00114774,120280.0,120270.0,1.31433069]
[1755098510374,0.00014774,120280.0,120270.0,1.31274069]
[1755098510844,0.00214774,120280.0,120270.0,1.31274069]
[1755098511050,0.00214774,120280.0,120270.0,1.28774069]
[1755098511266,0.00214774,120280.0,120270.0,1.31274069]
[1755098511476,0.00014774,120280.0,120270.0,1.33385626]
[1755098511688,0.00114774,120280.0,120270.0,1.53309626]
[1755098511902,0.00114774,120280.0,120270.0,1.53305626]
[1755098512131,0.00314774,120280.0,120270.0,1.29245626]
[1755098512336,0.00314774,120280.0,120270.0,1.51294069]
[1755098512754,0.00314774,120280.0,120270.0,1.52362873]
[1755098512973,0.00314774,120280.0,120270.0,1.18638873]
[1755098513193,0.00314774,120280.0,120270.0,0.01168804]
[1755098513410,0.00314774,120280.0,120270.0,0.59383739]
[1755098513623,0.00314774,120280.0,120270.0,0.59075051]
[1755098514250,0.00314774,120280.0,120270.0,0.001]
[1755098514454,0.10407877,120280.0,120270.0,0.001]
[1755098514662,0.11448665,120280.0,120270.0,0.13896]
[1755098514876,0.11448665,120280.0,120270.0,0.13892]
[1755098514877,0.18133436,120280.0,120270.0,0.13892]
[1755098515269,0.18033436,120280.0,120270.0,0.13892]
[1755098515498,0.16992648,120280.0,120270.0,0.13892]
[1755098515700,0.64416601,120280.0,120270.0,0.13992]
[1755098515878,0.1923755,120280.0,120270.0,0.13992]
[1755098516349,0.17492648,120280.0,120270.0,0.002]
[1755098516477,0.17292648,120280.0,120270.0,0.13892]
[1755098516886,0.1658187,120280.0,120270.0,0.13992]
[1755098517104,0.11097937,120280.0,120270.0,0.45379051]
[1755098517313,0.02825612,120280.0,120270.0,0.002]
[1755098517542,0.0282558,120280.0,120270.0,0.13988]
[1755098517872,0.0313558,120280.0,120270.0,0.13988]
[1755098518075,0.11407905,120280.0,120270.0,0.13888]
[1755098518281,0.08287099,120280.0,120270.0,0.13788]
[1755098518510,0.08787099,120280.0,120270.0,0.13888]
[1755098518722,0.08987099,120280.0,120270.0,0.19794705]
[1755098518917,0.08987099,120280.0,120270.0,0.13888]
[1755098519204,0.09297099,120280.0,120270.0,0.001]
[1755098519411,0.00714774,120280.0,120270.0,0.13888]
[1755098519621,0.00714774,120280.0,120270.0,0.45279051]
[1755098519801,0.00214774,120280.0,120260.0,0.61809621]
[1755098520088,0.00214774,120280.0,120270.0,0.13884]
[1755098520300,0.01014774,120280.0,120270.0,0.62216989]
[1755098520500,0.00014774,120280.0,120270.0,0.00141]
[1755098520707,0.00014774,120280.0,120270.0,0.59104051]
[1755098520911,0.01014774,120280.0,120270.0,0.62049301]
[1755098521086,0.01014774,120280.0,120270.0,0.77307721]
[1755098521326,0.01014774,120280.0,120270.0,0.63523721]
[1755098521537,0.01014774,120280.0,120270.0,1.02080046]
[1755098521744,0.01014774,120280.0,120270.0,1.15860046]
[1755098522431,0.01014774,120280.0,120270.0,1.04680995]
[1755098522647,0.01014774,120280.0,120270.0,1.49860046]
[1755098523086,0.00314774,120280.0,120270.0,1.41900046]
[1755098523293,0.00314774,120280.0,120270.0,1.21976046]
[1755098523506,0.00614774,120280.0,120270.0,1.22076046]
[1755098523713,0.00314774,120280.0,120270.0,1.22076046]
[1755098524133,0.00314774,120280.0,120270.0,1.22072046]
[1755098524726,0.00314774,120280.0,120270.0,1.20597626]
[1755098525175,0.00314774,120280.0,120270.0,0.341]
[1755098525414,0.00314774,120280.0,120270.0,0.95546351]
[1755098525874,0.00314774,120280.0,120270.0,0.95542351]
[1755098526114,0.00314774,120280.0,120270.0,0.98540601]
[1755098526349,0.00314774,120280.0,120270.0,1.20561044]
[1755098526542,0.00314774,120280.0,120270.0,0.81061369]
[1755098527075,0.00314774,120280.0,120270.0,0.94833369]
[1755098528086,0.00314774,120280.0,120270.0,0.10839743]
[1755098528339,0.00314774,120280.0,120270.0,0.61538351]
[1755098528761,0.00314774,120280.0,120270.0,0.47770351]
[1755098528959,0.00314774,120280.0,120270.0,0.78308601]
[1755098529269,0.00314774,120280.0,120270.0,0.72812926]
[1755098529406,0.00314774,120280.0,120270.0,0.75312926]
[1755098529607,0.00314774,120280.0,120270.0,0.83561369]
[1755098529834,0.00314774,120280.0,120270.0,0.97325369]
[1755098530266,0.00314774,120280.0,120270.0,0.35882318]
[1755098530473,0.00314774,120280.0,120270.0,0.94684369]
[1755098531074,0.00314774,120280.0,120270.0,0.78055119]
[1755098531257,0.00314774,120280.0,120270.0,0.819887]
[1755098531463,0.00314774,120280.0,120270.0,1.15165075]
[1755098531685,0.00314774,120280.0,120270.0,0.64086642]
[1755098531888,0.00314774,120280.0,120270.0,1.11756693]
[1755098532172,0.00314774,120280.0,120270.0,0.66577642]
[1755098532387,0.08894099,120280.0,120270.0,0.33693392]
[1755098532631,0.00314774,120280.0,120270.0,0.98905693]
[1755098532848,0.00314774,120280.0,120270.0,1.19286693]
[1755098533065,0.00314774,120280.0,120270.0,1.33046693]
[1755098533271,0.00014774,120280.0,120270.0,0.99366693]
[1755098533472,0.00321774,120280.0,120270.0,0.03417392]
[1755098533702,0.01121774,120280.0,120270.0,0.01168331]
[1755098533904,0.01121774,120280.0,120270.0,0.13756]
[1755098534237,0.01121774,120280.0,120270.0,0.13856]
[1755098534433,0.09394099,120280.0,120270.0,0.001]
[1755098534638,0.09594099,120280.0,120270.0,0.13856]
[1755098535050,0.09594099,120280.0,120270.0,0.001]
[1755098535252,0.68473052,120280.0,120230.0,0.024916]
[1755098535495,0.06684771,120250.0,120230.0,0.024916]
[1755098535692,0.08579325,120240.0,120230.0,0.024916]
[1755098535929,0.08579325,120240.0,120200.0,0.45189051]
[1755098536051,0.08272325,120240.0,120210.0,0.58935051]
[1755098536254,0.00207,120230.0,120220.0,0.13752]
[1755098536460,0.08379325,120230.0,120220.0,0.45179051]
[1755098536725,0.08272325,120230.0,120220.0,0.45179051]
[1755098536857,0.06684771,120270.0,120230.0,0.17466381]
[1755098537057,0.08272325,120260.0,120240.0,0.14060809]
[1755098537311,0.08272325,120260.0,120250.0,0.45179051]
[1755098537580,0.08272325,120260.0,120240.0,0.45179051]
[1755098537761,0.06684771,120270.0,120250.0,0.45179051]
[1755098537989,0.14957096,120270.0,120260.0,0.59239791]
[1755098538204,0.06684771,120270.0,120250.0,0.16935978]
[1755098538419,0.00307,120290.0,120260.0,0.62949955]
[1755098538625,0.08272325,120290.0,120280.0,0.45179051]
[1755098538870,0.06991771,120300.0,120280.0,0.5638856]
[1755098539109,0.15264096,120300.0,120280.0,0.7014056]
[1755098539343,0.15264096,120300.0,120270.0,0.73017519]
[1755098539553,0.15264096,120300.0,120280.0,0.13752]
[1755098539760,0.15264096,120300.0,120290.0,0.13748]
[1755098540000,0.15278872,120300.0,120290.0,0.13748]
[1755098540439,0.15778872,120300.0,120280.0,0.001]
[1755098540647,0.20665032,120300.0,120290.0,0.13748]
[1755098540864,0.24697534,120300.0,120290.0,0.13748]
[1755098541071,0.32969859,120300.0,120280.0,0.001]
[1755098541299,0.21014859,120300.0,120290.0,0.13748]
[1755098541498,0.20814859,120300.0,120290.0,0.44028]
[1755098541704,0.20314859,120300.0,120290.0,0.44028]
[1755098541909,0.30789259,120300.0,120290.0,0.3038]
[1755098542780,0.30789259,120300.0,120290.0,0.44124]
[1755098543238,0.30989553,120300.0,120290.0,0.44124]
[1755098543462,0.31389553,120300.0,120290.0,0.44224]
[1755098543683,0.30889553,120300.0,120290.0,0.44124]
[1755098543907,0.3913806,120300.0,120290.0,0.44124]
[1755098544371,0.3913806,120300.0,120290.0,0.3048]
[1755098544372,0.9612662,120300.0,120290.0,0.3048]
[1755098544601,0.9612662,120300.0,120290.0,0.3038]
[1755098544836,1.2952662,120300.0,120290.0,0.3038]
[1755098545094,1.3032662,120300.0,120290.0,0.3048]
[1755098545560,1.30326407,120300.0,120290.0,0.4422]
[1755098546180,1.30326407,120300.0,120290.0,0.3048]
[1755098546387,1.29526407,120300.0,120290.0,0.4412]
[1755098546802,0.73837847,120300.0,120290.0,0.3048]
[1755098547011,0.65589404,120300.0,120290.0,0.4422]
[1755098547248,0.59512949,120300.0,120290.0,0.4422]
[1755098547457,0.59512949,120300.0,120290.0,0.3048]
[1755098547668,0.59512949,120300.0,120290.0,0.44216]
[1755098547874,0.60516373,120300.0,120290.0,0.44216]
[1755098548072,0.68764816,120300.0,120290.0,0.44216]
[1755098548275,0.67761392,120300.0,120290.0,0.44216]
[1755098549404,1.24149952,120300.0,120290.0,0.44216]
[1755098550580,0.67761392,120300.0,120290.0,0.3048]
[1755098550786,1.24149952,120300.0,120290.0,0.44216]
[1755098551440,1.24149952,120300.0,120290.0,0.3048]
[1755098551643,1.24149952,120300.0,120290.0,0.44212]
[1755098551845,1.24149952,120300.0,120290.0,0.3048]
[1755098552053,1.30834723,120300.0,120290.0,0.3048]
[1755098552188,1.30834879,120300.0,120290.0,0.44212]
[1755098552402,1.30834879,120300.0,120290.0,0.3048]
[1755098552587,1.30834879,120300.0,120290.0,0.44208]
[1755098553661,0.59513105,120300.0,120290.0,0.3048]
[1755098554062,0.59513105,120300.0,120290.0,0.44208]
[1755098554302,0.59513105,120300.0,120290.0,0.3048]
[1755098554517,0.59513105,120300.0,120290.0,0.44208]
[1755098554746,0.59512623,120300.0,120290.0,0.44208]
[1755098554886,0.47557623,120300.0,120290.0,0.3048]
[1755098555086,0.47557623,120300.0,120290.0,0.44208]
[1755098555996,0.45812721,120300.0,120290.0,0.44208]
[1755098556223,0.44294101,120300.0,120290.0,0.3048]
[1755098556389,0.09987101,120300.0,120290.0,0.3048]
[1755098556615,0.11732003,120300.0,120290.0,0.3048]
[1755098556831,0.09987101,120300.0,120290.0,0.44204]
[1755098557244,0.11132003,120300.0,120290.0,0.44204]
[1755098557486,0.09387101,120300.0,120290.0,0.44004]
[1755098557692,0.10432003,120300.0,120290.0,0.3038]
[1755098557906,0.10432003,120300.0,120290.0,0.441]
[1755098558077,0.118963,120300.0,120290.0,0.441]
[1755098558285,0.122023,120300.0,120290.0,0.441]
[1755098558770,0.10832003,120300.0,120290.0,0.441]
[1755098559209,0.10832003,120300.0,120290.0,0.3038]
[1755098559417,0.09087101,120300.0,120290.0,0.44396]
[1755098559828,0.09087101,120300.0,120290.0,0.441]
[1755098560204,0.09087101,120300.0,120290.0,0.2002]
[1755098560482,0.09087101,120300.0,120290.0,0.34032]
[1755098560906,0.09087101,120300.0,120290.0,0.33736]
[1755098561110,0.09087101,120300.0,120290.0,0.13816]
[1755098561520,0.09087101,120300.0,120290.0,0.441]
[1755098561899,0.09087101,120300.0,120290.0,0.44396]
[1755098562274,0.09087101,120300.0,120290.0,0.3068]
[1755098562646,0.09087101,120300.0,120290.0,0.34032]
[1755098562774,0.09087101,120300.0,120290.0,0.33736]
[1755098562977,0.54378362,120300.0,120290.0,0.20024]
[1755098563201,0.10738003,120300.0,120290.0,0.19924]
[1755098563410,0.10338003,120300.0,120290.0,0.19924]
[1755098563683,0.10538003,120300.0,120290.0,0.33736]
[1755098563854,0.10938003,120300.0,120290.0,0.33841]
[1755098564031,0.10948969,120300.0,120290.0,0.33741]
[1755098564242,0.114329,120300.0,120290.0,0.19929]
[1755098564456,0.11042969,120300.0,120290.0,0.33837]
[1755098564659,0.10832003,120300.0,120290.0,0.33837]
[1755098565246,0.11042969,120300.0,120290.0,0.33837]
[1755098566317,0.10832003,120300.0,120290.0,0.33837]
[1755098566487,0.09087101,120300.0,120290.0,0.33837]
[1755098566700,0.09087101,120300.0,120290.0,0.20425]
[1755098566903,0.09087101,120300.0,120290.0,0.34129]
[1755098567391,0.09087101,120300.0,120290.0,0.14205]
[1755098567635,0.09087101,120300.0,120290.0,0.14513602]
[1755098567872,0.09087101,120300.0,120290.0,0.46100863]
[1755098568050,0.00814776,120300.0,120290.0,0.59496261]
[1755098568324,0.00814776,120300.0,120290.0,0.45792261]
[1755098568530,0.00814776,120300.0,120290.0,0.62418746]
[1755098568747,0.00814776,120300.0,120290.0,0.84395071]
[1755098568989,0.06684771,120360.0,120320.0,0.17452589]
[1755098569136,0.00014774,120360.0,120350.0,0.61909431]
[1755098569338,0.0002,120370.0,120350.0,1.31969017]
[1755098569488,0.0002,120370.0,120360.0,0.45587261]
[1755098569738,0.0002,120370.0,120360.0,0.75904077]
[1755098570136,0.0002,120370.0,120360.0,0.72118306]
[1755098570356,0.0002,120370.0,120360.0,0.77118306]
[1755098570781,0.0002,120370.0,120360.0,0.86464417]
[1755098571126,0.0002,120370.0,120360.0,1.00264417]
[1755098571328,0.0002,120370.0,120360.0,1.02734313]
[1755098571569,0.0002,120370.0,120360.0,1.53306313]
[1755098571799,0.0002,120370.0,120360.0,1.79610215]
[1755098571932,0.0002,120370.0,120360.0,1.53058215]
[1755098572139,0.0002,120370.0,120360.0,1.20534313]
[1755098572347,0.0002,120370.0,120360.0,1.31726313]
[1755098572565,0.0002,120370.0,120360.0,1.21450667]
[1755098572751,0.0012,120370.0,120360.0,1.37842667]
[1755098572955,0.0022,120370.0,120360.0,1.40642667]
[1755098573179,0.0012,120370.0,120360.0,1.26750667]
[1755098573391,0.0012,120370.0,120360.0,1.42187569]
[1755098573601,0.0012,120370.0,120360.0,1.38671215]
[1755098573809,0.0012,120370.0,120360.0,1.38571215]
[1755098574031,0.0022,120370.0,120360.0,0.82691939]
[1755098574239,0.0022,120370.0,120360.0,1.38771215]
[1755098574481,0.0002,120370.0,120360.0,1.38371215]
[1755098575218,0.0012,120370.0,120360.0,1.38771215]
[1755098575697,0.0012,120370.0,120360.0,1.25079215]
[1755098575950,0.0012,120370.0,120360.0,1.38863215]
[1755098576579,0.0012,120370.0,120360.0,1.38859215]
[1755098578524,0.0012,120370.0,120360.0,1.25179215]
[1755098578736,0.0012,120370.0,120360.0,1.38855215]
[1755098578940,0.0012,120370.0,120360.0,1.41343715]
[1755098579387,0.0012,120370.0,120360.0,1.27667715]
[1755098580043,0.0012,120370.0,120360.0,1.41339715]
[1755098580447,0.0012,120370.0,120360.0,1.27667715]
[1755098580673,0.0012,120370.0,120360.0,0.14749953]